[Event "Early-Titled-Tuesday-Blitz-July-09-2024"]
[Site "Chess.com"]
[Date "2024.07.09"]
[Round "5"]
[White "FoggyMorning"]
[Black "ThanhNghia"]
[Result "1/2-1/2"]
[WhiteElo "2657"]
[BlackElo "2502"]
[TimeControl "180+1"]
[EndTime "8:58:54 PDT"]
[Termination "Game drawn by repetition"]

1. e4 {[%clk 0:03:00.9]} 1... e5 {[%clk 0:02:59.8]} 2. Nf3 {[%clk 0:02:58.2]}
2... Nc6 {[%clk 0:02:59.5]} 3. Bc4 {[%clk 0:02:58.6]} 3... Be7 {[%clk
0:02:59.3]} 4. d4 {[%clk 0:02:57.1]} 4... exd4 {[%clk 0:02:57.6]} 5. Nxd4 {[%clk
0:02:58]} 5... d6 {[%clk 0:02:56.2]} 6. Nc3 {[%clk 0:02:56.4]} 6... Nf6 {[%clk
0:02:55.8]} 7. O-O {[%clk 0:02:55.1]} 7... O-O {[%clk 0:02:55.4]} 8. Bb3 {[%clk
0:02:43.7]} 8... Bd7 {[%clk 0:02:38.5]} 9. Re1 {[%clk 0:02:41.8]} 9... Nxd4
{[%clk 0:02:30.5]} 10. Qxd4 {[%clk 0:02:41]} 10... c5 {[%clk 0:02:30.7]} 11. Qd3
{[%clk 0:02:35.2]} 11... Bc6 {[%clk 0:02:20.4]} 12. Bf4 {[%clk 0:02:32.3]} 12...
Nh5 {[%clk 0:01:58.7]} 13. Be3 {[%clk 0:02:25.3]} 13... Nf6 {[%clk 0:01:36.4]}
14. Rad1 {[%clk 0:02:17.8]} 14... a6 {[%clk 0:01:25.8]} 15. a4 {[%clk
0:02:06.7]} 15... Ng4 {[%clk 0:01:20.3]} 16. Bf4 {[%clk 0:02:02.6]} 16... Ne5
{[%clk 0:01:18.9]} 17. Bxe5 {[%clk 0:02:00.9]} 17... dxe5 {[%clk 0:01:18.8]} 18.
Bd5 {[%clk 0:02:01.6]} 18... Qb6 {[%clk 0:01:13.6]} 19. Bxc6 {[%clk 0:01:51.9]}
19... bxc6 {[%clk 0:01:13.2]} 20. b3 {[%clk 0:01:51.3]} 20... Rad8 {[%clk
0:01:13.2]} 21. Qg3 {[%clk 0:01:46]} 21... f6 {[%clk 0:01:09.5]} 22. Qg4 {[%clk
0:01:37.4]} 22... Kf7 {[%clk 0:00:53.1]} 23. Qh5+ {[%clk 0:01:30.2]} 23... Kg8
{[%clk 0:00:53.1]} 24. Qh3 {[%clk 0:01:30.3]} 24... Kf7 {[%clk 0:00:52.2]} 25.
Qxh7 {[%clk 0:01:25.4]} 25... Rh8 {[%clk 0:00:51.7]} 26. Qf5 {[%clk 0:01:25.6]}
26... c4 {[%clk 0:00:44.7]} 27. Rb1 {[%clk 0:01:02.5]} 27... Qa5 {[%clk
0:00:41.4]} 28. Ne2 {[%clk 0:00:54.1]} 28... Qd2 {[%clk 0:00:34.8]} 29. Qf3
{[%clk 0:00:46.1]} 29... Qxc2 {[%clk 0:00:30]} 30. Rec1 {[%clk 0:00:45.3]} 30...
Qa2 {[%clk 0:00:26.5]} 31. bxc4 {[%clk 0:00:36.6]} 31... Rb8 {[%clk 0:00:22.5]}
32. Rxb8 {[%clk 0:00:34.8]} 32... Rxb8 {[%clk 0:00:22.2]} 33. Ng3 {[%clk
0:00:27]} 33... Rb1 {[%clk 0:00:18.9]} 34. Rf1 {[%clk 0:00:23]} 34... Rxf1+
{[%clk 0:00:18.3]} 35. Nxf1 {[%clk 0:00:23.9]} 35... Qxa4 {[%clk 0:00:18.4]} 36.
Qh5+ {[%clk 0:00:21]} 36... Kf8 {[%clk 0:00:17.2]} 37. Qh8+ {[%clk 0:00:20.7]}
37... Kf7 {[%clk 0:00:17.5]} 38. Qh5+ {[%clk 0:00:21.6]} 38... Kg8 {[%clk
0:00:15.6]} 39. Qe8+ {[%clk 0:00:20.9]} 39... Bf8 {[%clk 0:00:15.9]} 40. Qe6+
{[%clk 0:00:21.4]} 40... Kh8 {[%clk 0:00:15.5]} 41. Qh3+ {[%clk 0:00:19.9]}
41... Kg8 {[%clk 0:00:15.3]} 42. Qe6+ {[%clk 0:00:20.8]} 42... Kh8 {[%clk
0:00:15.2]} 43. g3 {[%clk 0:00:21.5]} 43... Qb4 {[%clk 0:00:12.4]} 44. Ne3
{[%clk 0:00:19.9]} 44... a5 {[%clk 0:00:11.1]} 45. Qxc6 {[%clk 0:00:13]} 45...
a4 {[%clk 0:00:10.2]} 46. Qa8 {[%clk 0:00:13.5]} 46... a3 {[%clk 0:00:10]} 47.
Kg2 {[%clk 0:00:13.9]} 47... Qb1 {[%clk 0:00:08.9]} 48. Qxf8+ {[%clk 0:00:05.1]}
48... Kh7 {[%clk 0:00:09.2]} 49. Qe8 {[%clk 0:00:03.2]} 49... Qxe4+ {[%clk
0:00:08.4]} 50. Kh3 {[%clk 0:00:02.7]} 50... a2 {[%clk 0:00:07.4]} 51. Qh5+
{[%clk 0:00:02.8]} 51... Kg8 {[%clk 0:00:07.8]} 52. Qe8+ {[%clk 0:00:03.7]}
52... Kh7 {[%clk 0:00:07.2]} 53. Qh5+ {[%clk 0:00:04.4]} 53... Kg8 {[%clk
0:00:07.4]} 54. Qe8+ {[%clk 0:00:04.5]} 54... Kh7 {[%clk 0:00:07.7]} 1/2-1/2

[Event "Early-Titled-Tuesday-Blitz-July-09-2024"]
[Site "Chess.com"]
[Date "2024.07.09"]
[Round "5"]
[White "maciek_92"]
[Black "Beca95"]
[Result "0-1"]
[WhiteElo "2829"]
[BlackElo "2996"]
[TimeControl "180+1"]
[EndTime "8:58:58 PDT"]
[Termination "Beca95 won by resignation"]

1. c4 {[%clk 0:03:00.9]} 1... e5 {[%clk 0:02:58.3]} 2. Nc3 {[%clk 0:02:57.2]}
2... Nf6 {[%clk 0:02:57.5]} 3. g3 {[%clk 0:02:57.3]} 3... h6 {[%clk 0:02:55.8]}
4. Bg2 {[%clk 0:02:56.9]} 4... Bb4 {[%clk 0:02:55.5]} 5. e4 {[%clk 0:02:56.4]}
5... d6 {[%clk 0:02:55]} 6. Nge2 {[%clk 0:02:56.2]} 6... Nc6 {[%clk 0:02:53.2]}
7. O-O {[%clk 0:02:55.3]} 7... Bc5 {[%clk 0:02:50.6]} 8. h3 {[%clk 0:02:53.7]}
8... a5 {[%clk 0:02:48.7]} 9. d3 {[%clk 0:02:54]} 9... Nd4 {[%clk 0:02:45.4]}
10. Nxd4 {[%clk 0:02:53.7]} 10... Bxd4 {[%clk 0:02:43.8]} 11. Ne2 {[%clk
0:02:54.3]} 11... Bb6 {[%clk 0:02:41]} 12. d4 {[%clk 0:02:52.7]} 12... Qe7
{[%clk 0:02:40.6]} 13. Be3 {[%clk 0:02:52]} 13... exd4 {[%clk 0:02:28.8]} 14.
Nxd4 {[%clk 0:02:52.9]} 14... O-O {[%clk 0:02:26.9]} 15. Re1 {[%clk 0:02:52.9]}
15... Re8 {[%clk 0:02:26.6]} 16. Nb5 {[%clk 0:02:50.2]} 16... Bxe3 {[%clk
0:02:25.4]} 17. Rxe3 {[%clk 0:02:51.1]} 17... Rd8 {[%clk 0:02:17.6]} 18. Qe2
{[%clk 0:02:39.9]} 18... c6 {[%clk 0:02:16.1]} 19. Nc3 {[%clk 0:02:39.3]} 19...
Nd7 {[%clk 0:02:13.9]} 20. f4 {[%clk 0:02:34.7]} 20... Nc5 {[%clk 0:02:13]} 21.
Re1 {[%clk 0:02:20.1]} 21... Qf8 {[%clk 0:02:06.9]} 22. b3 {[%clk 0:02:07.5]}
22... f6 {[%clk 0:02:02]} 23. Kh2 {[%clk 0:02:05]} 23... Be6 {[%clk 0:02:00.9]}
24. Rf1 {[%clk 0:02:04.5]} 24... Qe7 {[%clk 0:01:58.1]} 25. e5 {[%clk
0:02:04.7]} 25... dxe5 {[%clk 0:01:51.3]} 26. fxe5 {[%clk 0:02:05.6]} 26... f5
{[%clk 0:01:50.9]} 27. Qh5 {[%clk 0:01:48.8]} 27... Rd3 {[%clk 0:01:39]} 28.
Rxd3 {[%clk 0:01:28.1]} 28... Nxd3 {[%clk 0:01:39.9]} 29. Qe2 {[%clk 0:01:28.8]}
29... Nc5 {[%clk 0:01:39.1]} 30. Rd1 {[%clk 0:01:16.7]} 30... Bf7 {[%clk
0:01:38.1]} 31. Qe3 {[%clk 0:00:53.6]} 31... Re8 {[%clk 0:01:37.1]} 32. Re1
{[%clk 0:00:52.6]} 32... Nd7 {[%clk 0:01:33.6]} 33. Qa7 {[%clk 0:00:39.1]} 33...
Nxe5 {[%clk 0:01:31.4]} 34. Rf1 {[%clk 0:00:38]} 34... Qb4 {[%clk 0:01:28.6]}
35. Qd4 {[%clk 0:00:33.5]} 35... g6 {[%clk 0:01:27.1]} 36. Rd1 {[%clk
0:00:13.1]} 36... Kh7 {[%clk 0:01:00.1]} 37. Ne2 {[%clk 0:00:10.6]} 37... Qe7
{[%clk 0:00:54.7]} 38. Nf4 {[%clk 0:00:10.5]} 38... g5 {[%clk 0:00:54.7]} 39.
Ne2 {[%clk 0:00:03.7]} 39... Bh5 {[%clk 0:00:52.6]} 40. Rd2 {[%clk 0:00:03.5]}
40... Bxe2 {[%clk 0:00:48.6]} 41. Rxe2 {[%clk 0:00:04.4]} 41... Ng4+ {[%clk
0:00:49]} 42. hxg4 {[%clk 0:00:05.3]} 42... Qxe2 {[%clk 0:00:49]} 43. Qd7+
{[%clk 0:00:06]} 43... Re7 {[%clk 0:00:46.4]} 44. Qxf5+ {[%clk 0:00:06.6]} 44...
Kg7 {[%clk 0:00:43.5]} 45. Qxa5 {[%clk 0:00:07.5]} 45... Qxg4 {[%clk 0:00:41.5]}
46. Qc3+ {[%clk 0:00:07.6]} 46... Kh7 {[%clk 0:00:37.5]} 47. Bf3 {[%clk
0:00:06.4]} 47... Qe6 {[%clk 0:00:31.5]} 48. Bd1 {[%clk 0:00:05.8]} 48... Qe5
{[%clk 0:00:26.6]} 49. Qd3+ {[%clk 0:00:06.1]} 49... Kg7 {[%clk 0:00:25.6]} 50.
Bc2 {[%clk 0:00:06.7]} 50... Qe2+ {[%clk 0:00:24.6]} 51. Kh3 {[%clk 0:00:06.4]}
51... Qxd3 {[%clk 0:00:24.4]} 52. Bxd3 {[%clk 0:00:07.3]} 52... Re3 {[%clk
0:00:22.3]} 53. Bf5 {[%clk 0:00:06]} 53... c5 {[%clk 0:00:20.1]} 54. Kg4 {[%clk
0:00:03.1]} 54... b6 {[%clk 0:00:19.9]} 0-1

[Event "Early-Titled-Tuesday-Blitz-July-09-2024"]
[Site "Chess.com"]
[Date "2024.07.09"]
[Round "5"]
[White "FormerProdigy"]
[Black "Alonmindlin"]
[Result "1-0"]
[WhiteElo "2980"]
[BlackElo "2711"]
[TimeControl "180+1"]
[EndTime "8:58:58 PDT"]
[Termination "FormerProdigy won by resignation"]

1. d4 {[%clk 0:03:00.9]} 1... Nf6 {[%clk 0:02:58.3]} 2. Bf4 {[%clk 0:02:59.3]}
2... d5 {[%clk 0:02:57.8]} 3. e3 {[%clk 0:02:59.3]} 3... c5 {[%clk 0:02:57.7]}
4. c3 {[%clk 0:02:58.4]} 4... Nc6 {[%clk 0:02:57.4]} 5. Nd2 {[%clk 0:02:57.9]}
5... Qb6 {[%clk 0:02:43.6]} 6. Qb3 {[%clk 0:02:55.8]} 6... c4 {[%clk 0:02:42.9]}
7. Qc2 {[%clk 0:02:55]} 7... Bg4 {[%clk 0:02:37.1]} 8. b3 {[%clk 0:02:50.2]}
8... cxb3 {[%clk 0:02:35.8]} 9. axb3 {[%clk 0:02:51.1]} 9... e6 {[%clk
0:02:32.8]} 10. Bd3 {[%clk 0:02:46.6]} 10... Rc8 {[%clk 0:02:29]} 11. Qb2 {[%clk
0:02:38.3]} 11... Be7 {[%clk 0:02:23.3]} 12. h3 {[%clk 0:02:36.5]} 12... Bh5
{[%clk 0:02:18.4]} 13. Ngf3 {[%clk 0:02:36.8]} 13... Bg6 {[%clk 0:02:13.6]} 14.
Bxg6 {[%clk 0:02:36.4]} 14... hxg6 {[%clk 0:02:14.5]} 15. O-O {[%clk 0:02:33.8]}
15... O-O {[%clk 0:02:07.7]} 16. Rfc1 {[%clk 0:02:34.2]} 16... a5 {[%clk
0:01:59.3]} 17. Ne1 {[%clk 0:02:27.7]} 17... Ra8 {[%clk 0:01:56.6]} 18. Nd3
{[%clk 0:02:26.5]} 18... Rfc8 {[%clk 0:01:56.5]} 19. c4 {[%clk 0:02:25.5]} 19...
Nb4 {[%clk 0:01:53]} 20. Ne5 {[%clk 0:02:19]} 20... Qd8 {[%clk 0:01:48]} 21.
Ndf3 {[%clk 0:02:17.3]} 21... Nd7 {[%clk 0:01:46.7]} 22. Qe2 {[%clk 0:02:15.1]}
22... Nxe5 {[%clk 0:01:46.6]} 23. Nxe5 {[%clk 0:02:15.8]} 23... Bf6 {[%clk
0:01:39.3]} 24. c5 {[%clk 0:02:01]} 24... b6 {[%clk 0:01:35.8]} 25. Qb5 {[%clk
0:01:53.1]} 25... bxc5 {[%clk 0:01:35]} 26. Rxc5 {[%clk 0:01:52.5]} 26... Rxc5
{[%clk 0:01:32.5]} 27. dxc5 {[%clk 0:01:41.4]} 27... g5 {[%clk 0:01:22.6]} 28.
Bg3 {[%clk 0:01:38.4]} 28... d4 {[%clk 0:00:49.4]} 29. Rd1 {[%clk 0:01:27.1]}
29... Qd5 {[%clk 0:00:37]} 30. Rxd4 {[%clk 0:01:08.8]} 30... Qxb3 {[%clk
0:00:36.4]} 31. Qb7 {[%clk 0:01:07.7]} 31... Rf8 {[%clk 0:00:31.9]} 32. c6
{[%clk 0:01:08]} 32... Qc3 {[%clk 0:00:17]} 33. c7 {[%clk 0:01:02.6]} 33... Nd5
{[%clk 0:00:17.3]} 34. Rc4 {[%clk 0:00:18.1]} 34... Qa1+ {[%clk 0:00:09.5]} 35.
Kh2 {[%clk 0:00:18.7]} 35... Bxe5 {[%clk 0:00:10.1]} 36. c8=Q {[%clk 0:00:18]}
36... Bxg3+ {[%clk 0:00:10.2]} 37. fxg3 {[%clk 0:00:18.9]} 37... Rxc8 {[%clk
0:00:05.7]} 38. Rxc8+ {[%clk 0:00:19.8]} 38... Kh7 {[%clk 0:00:05.9]} 39. Qxf7
{[%clk 0:00:20.7]} 39... Nf6 {[%clk 0:00:06.3]} 40. Qxe6 {[%clk 0:00:19.9]}
40... Qf1 {[%clk 0:00:05.6]} 41. Rc5 {[%clk 0:00:18.7]} 41... g4 {[%clk
0:00:05.3]} 42. Qf5+ {[%clk 0:00:18.2]} 42... Qxf5 {[%clk 0:00:05.7]} 43. Rxf5
{[%clk 0:00:19.1]} 43... a4 {[%clk 0:00:06.1]} 44. Ra5 {[%clk 0:00:18.8]} 44...
a3 {[%clk 0:00:06.7]} 45. Rxa3 {[%clk 0:00:18.8]} 45... Nd5 {[%clk 0:00:07.6]}
46. e4 {[%clk 0:00:18.3]} 46... Ne7 {[%clk 0:00:07.2]} 47. e5 {[%clk 0:00:15.5]}
47... Kg6 {[%clk 0:00:07.7]} 48. Ra7 {[%clk 0:00:13.1]} 48... Nd5 {[%clk
0:00:07.9]} 49. e6 {[%clk 0:00:10.6]} 49... Kf6 {[%clk 0:00:08.5]} 50. Rf7+
{[%clk 0:00:11]} 50... Kxe6 {[%clk 0:00:08.6]} 51. Rxg7 {[%clk 0:00:11.2]} 51...
Ne3 {[%clk 0:00:09.3]} 52. hxg4 {[%clk 0:00:09]} 52... Kf6 {[%clk 0:00:09.8]}
53. Rg8 {[%clk 0:00:09.1]} 53... Kf7 {[%clk 0:00:10.3]} 54. Ra8 {[%clk
0:00:08.4]} 54... Nxg4+ {[%clk 0:00:10.8]} 55. Kh3 {[%clk 0:00:09.2]} 55... Ne5
{[%clk 0:00:11.4]} 56. g4 {[%clk 0:00:09.3]} 56... Kg6 {[%clk 0:00:11.9]} 57.
Kh4 {[%clk 0:00:08.8]} 57... Kg7 {[%clk 0:00:11.8]} 58. Ra7+ {[%clk 0:00:08.6]}
58... Kg6 {[%clk 0:00:12]} 59. Ra6+ {[%clk 0:00:09.1]} 59... Kg7 {[%clk
0:00:12.6]} 60. Kh5 {[%clk 0:00:09.2]} 1-0

[Event "Early-Titled-Tuesday-Blitz-July-09-2024"]
[Site "Chess.com"]
[Date "2024.07.09"]
[Round "5"]
[White "Lion-Al-Messi"]
[Black "alexrustemov"]
[Result "0-1"]
[WhiteElo "2661"]
[BlackElo "2880"]
[TimeControl "180+1"]
[EndTime "8:58:59 PDT"]
[Termination "alexrustemov won by resignation"]

1. e4 {[%clk 0:03:00.9]} 1... e6 {[%clk 0:02:58.3]} 2. d4 {[%clk 0:02:59.9]}
2... d5 {[%clk 0:02:57.6]} 3. exd5 {[%clk 0:03:00.8]} 3... exd5 {[%clk
0:02:57.4]} 4. Bd3 {[%clk 0:03:01.2]} 4... Nc6 {[%clk 0:02:56.7]} 5. Nf3 {[%clk
0:03:00.8]} 5... Bd6 {[%clk 0:02:55.1]} 6. O-O {[%clk 0:03:00.3]} 6... Bg4
{[%clk 0:02:54]} 7. Re1+ {[%clk 0:03:00]} 7... Nge7 {[%clk 0:02:53.6]} 8. c3
{[%clk 0:03:00.2]} 8... Qd7 {[%clk 0:02:52.8]} 9. Nbd2 {[%clk 0:03:00.3]} 9...
Bf5 {[%clk 0:02:50.4]} 10. Bxf5 {[%clk 0:02:59.2]} 10... Qxf5 {[%clk 0:02:50.1]}
11. Nf1 {[%clk 0:03:00.1]} 11... O-O {[%clk 0:02:48.5]} 12. Ng3 {[%clk
0:03:00.3]} 12... Qd7 {[%clk 0:02:40]} 13. b4 {[%clk 0:02:56.8]} 13... a6 {[%clk
0:02:38.6]} 14. a4 {[%clk 0:02:56.4]} 14... Rfe8 {[%clk 0:02:36.7]} 15. Be3
{[%clk 0:02:47.7]} 15... Nf5 {[%clk 0:02:35.9]} 16. Qd3 {[%clk 0:02:47.3]} 16...
Bxg3 {[%clk 0:02:27.1]} 17. hxg3 {[%clk 0:02:46.6]} 17... Nd6 {[%clk 0:02:27.6]}
18. Bf4 {[%clk 0:02:46.2]} 18... Nc4 {[%clk 0:02:21.6]} 19. b5 {[%clk
0:02:44.3]} 19... axb5 {[%clk 0:02:08.6]} 20. axb5 {[%clk 0:02:45.2]} 20... Rxa1
{[%clk 0:02:06.8]} 21. Rxa1 {[%clk 0:02:44.4]} 21... N6a5 {[%clk 0:02:05.1]} 22.
Ng5 {[%clk 0:02:41.2]} 22... g6 {[%clk 0:02:04.8]} 23. Nf3 {[%clk 0:02:32.3]}
23... f6 {[%clk 0:01:59.6]} 24. g4 {[%clk 0:02:30]} 24... Re4 {[%clk 0:01:54]}
25. g3 {[%clk 0:02:26.8]} 25... Rxf4 {[%clk 0:01:44.8]} 26. gxf4 {[%clk
0:02:24.2]} 26... Qxg4+ {[%clk 0:01:45.2]} 27. Kh1 {[%clk 0:02:21.5]} 27... Qxf4
{[%clk 0:01:33.1]} 28. Qe2 {[%clk 0:02:18.5]} 28... Qe4 {[%clk 0:01:29.3]} 29.
Qxe4 {[%clk 0:02:14.8]} 29... dxe4 {[%clk 0:01:29.3]} 30. Nd2 {[%clk 0:02:08]}
30... f5 {[%clk 0:01:15.7]} 31. Nxc4 {[%clk 0:02:07.7]} 31... Nxc4 {[%clk
0:01:16.4]} 32. Ra7 {[%clk 0:02:08]} 32... Nd6 {[%clk 0:01:10]} 33. c4 {[%clk
0:02:07]} 33... Nxc4 {[%clk 0:01:04.8]} 34. Rxb7 {[%clk 0:02:06.8]} 34... Nd6
{[%clk 0:01:05.4]} 35. Rb8+ {[%clk 0:01:58.5]} 35... Kf7 {[%clk 0:01:04.4]} 36.
d5 {[%clk 0:01:50]} 36... Kf6 {[%clk 0:01:03.2]} 37. Kg2 {[%clk 0:01:38.4]}
37... Ke5 {[%clk 0:01:02.9]} 38. Kg3 {[%clk 0:01:36.2]} 38... Kxd5 {[%clk
0:00:55.7]} 39. Kf4 {[%clk 0:01:34.5]} 39... h6 {[%clk 0:00:56]} 40. Rh8 {[%clk
0:01:23.2]} 40... g5+ {[%clk 0:00:55]} 41. Ke3 {[%clk 0:01:23.6]} 41... f4+
{[%clk 0:00:47.8]} 42. Ke2 {[%clk 0:01:23.8]} 42... Nxb5 {[%clk 0:00:48]} 43.
Rxh6 {[%clk 0:01:22.8]} 43... Nd4+ {[%clk 0:00:48.3]} 44. Kd2 {[%clk 0:01:21.3]}
44... c5 {[%clk 0:00:48.6]} 45. Kc3 {[%clk 0:01:19.6]} 45... Ne6 {[%clk
0:00:48.1]} 46. Rh8 {[%clk 0:01:15.8]} 46... Ke5 {[%clk 0:00:44.5]} 47. Rg8
{[%clk 0:01:15.1]} 47... Kf5 {[%clk 0:00:43.8]} 48. Kd2 {[%clk 0:01:15.4]} 48...
Kg4 {[%clk 0:00:39.3]} 49. Re8 {[%clk 0:01:15.1]} 49... Kf5 {[%clk 0:00:37.4]}
50. Kc3 {[%clk 0:01:14.4]} 50... g4 {[%clk 0:00:32.4]} 51. Kd2 {[%clk
0:01:14.5]} 51... Nd4 {[%clk 0:00:22.2]} 52. Rf8+ {[%clk 0:01:13.9]} 52... Kg5
{[%clk 0:00:22]} 53. Rg8+ {[%clk 0:01:11.6]} 53... Kf5 {[%clk 0:00:21.6]} 54.
Rf8+ {[%clk 0:01:12]} 54... Ke5 {[%clk 0:00:21.8]} 55. Re8+ {[%clk 0:01:10.7]}
55... Kd5 {[%clk 0:00:22.1]} 56. Rg8 {[%clk 0:01:08.4]} 56... Nf3+ {[%clk
0:00:22.4]} 57. Kc3 {[%clk 0:01:08.1]} 57... Ne5 {[%clk 0:00:22.8]} 58. Rg5
{[%clk 0:01:06.8]} 58... Ke6 {[%clk 0:00:22.7]} 59. Rg8 {[%clk 0:01:06.2]} 59...
f3 {[%clk 0:00:19]} 60. Kd2 {[%clk 0:01:04.2]} 60... Nc4+ {[%clk 0:00:14.3]} 61.
Ke1 {[%clk 0:01:04.5]} 61... Kf5 {[%clk 0:00:13.7]} 62. Rc8 {[%clk 0:01:04.3]}
62... Ne5 {[%clk 0:00:12.6]} 63. Rxc5 {[%clk 0:01:04.3]} 63... Kf4 {[%clk
0:00:12.7]} 64. Ra5 {[%clk 0:01:04]} 64... Nd3+ {[%clk 0:00:11.9]} 65. Kf1
{[%clk 0:01:04]} 65... g3 {[%clk 0:00:12.3]} 66. fxg3+ {[%clk 0:01:03.2]} 66...
Kxg3 {[%clk 0:00:12.5]} 67. Rd5 {[%clk 0:00:57.9]} 67... Kf4 {[%clk 0:00:12.4]}
68. Rd8 {[%clk 0:00:57.9]} 68... Ke3 {[%clk 0:00:12.8]} 69. Rd7 {[%clk 0:00:57]}
69... Kd2 {[%clk 0:00:12.6]} 70. Ra7 {[%clk 0:00:34.7]} 70... e3 {[%clk
0:00:13.1]} 71. Ra2+ {[%clk 0:00:34.8]} 71... Kd1 {[%clk 0:00:13.6]} 72. Ra1+
{[%clk 0:00:34.8]} 72... Nc1 {[%clk 0:00:14.1]} 0-1

[Event "Early-Titled-Tuesday-Blitz-July-09-2024"]
[Site "Chess.com"]
[Date "2024.07.09"]
[Round "5"]
[White "vladgoncharov"]
[Black "Smiechu"]
[Result "1-0"]
[WhiteElo "2644"]
[BlackElo "2447"]
[TimeControl "180+1"]
[EndTime "8:58:59 PDT"]
[Termination "vladgoncharov won by resignation"]

1. d4 {[%clk 0:03:00.9]} 1... Nf6 {[%clk 0:02:58.3]} 2. c4 {[%clk 0:03:00.6]}
2... c5 {[%clk 0:02:58.6]} 3. d5 {[%clk 0:03:00.3]} 3... e6 {[%clk 0:02:58.5]}
4. Nc3 {[%clk 0:02:59.8]} 4... exd5 {[%clk 0:02:59.4]} 5. cxd5 {[%clk
0:02:59.4]} 5... d6 {[%clk 0:03:00]} 6. Nf3 {[%clk 0:02:58.7]} 6... g6 {[%clk
0:03:00.5]} 7. Bf4 {[%clk 0:02:58.4]} 7... Bg7 {[%clk 0:03:00.4]} 8. Qa4+ {[%clk
0:02:55.7]} 8... Bd7 {[%clk 0:03:00.3]} 9. Qb3 {[%clk 0:02:54.7]} 9... Qc7
{[%clk 0:03:00.9]} 10. h3 {[%clk 0:02:42.7]} 10... O-O {[%clk 0:02:59.5]} 11.
Nd2 {[%clk 0:02:40.7]} 11... b5 {[%clk 0:02:45.8]} 12. a3 {[%clk 0:02:31.4]}
12... a6 {[%clk 0:02:43.1]} 13. Rc1 {[%clk 0:02:18.9]} 13... Re8 {[%clk
0:02:37.5]} 14. e3 {[%clk 0:02:17.8]} 14... Bf5 {[%clk 0:02:27]} 15. Be2 {[%clk
0:02:13.3]} 15... Qe7 {[%clk 0:02:17.7]} 16. O-O {[%clk 0:02:11.4]} 16... Nbd7
{[%clk 0:02:10.4]} 17. a4 {[%clk 0:02:01.4]} 17... b4 {[%clk 0:02:09.2]} 18.
Ncb1 {[%clk 0:01:59.8]} 18... Bxb1 {[%clk 0:02:04.6]} 19. Rxb1 {[%clk
0:01:55.9]} 19... Ne5 {[%clk 0:02:04.4]} 20. Rbc1 {[%clk 0:01:50.3]} 20... h6
{[%clk 0:01:57.7]} 21. Bh2 {[%clk 0:01:50]} 21... g5 {[%clk 0:01:54.8]} 22. Rfe1
{[%clk 0:01:48.6]} 22... g4 {[%clk 0:01:53]} 23. Bxe5 {[%clk 0:01:32.3]} 23...
Qxe5 {[%clk 0:01:52.3]} 24. hxg4 {[%clk 0:01:32.6]} 24... Qg5 {[%clk 0:01:48.4]}
25. Qc4 {[%clk 0:01:15.2]} 25... Nd7 {[%clk 0:01:42.1]} 26. b3 {[%clk
0:01:03.3]} 26... Bc3 {[%clk 0:01:32.4]} 27. Rcd1 {[%clk 0:01:00.5]} 27... Nf6
{[%clk 0:01:09.1]} 28. Bf3 {[%clk 0:00:54.2]} 28... Nd7 {[%clk 0:00:54.5]} 29.
Ne4 {[%clk 0:00:40.8]} 29... Rxe4 {[%clk 0:00:46.7]} 30. Qxe4 {[%clk 0:00:40.4]}
30... Bxe1 {[%clk 0:00:35.5]} 31. Rxe1 {[%clk 0:00:38.4]} 31... Ne5 {[%clk
0:00:35.5]} 32. Be2 {[%clk 0:00:37.5]} 32... Qg7 {[%clk 0:00:34.2]} 33. a5
{[%clk 0:00:32.5]} 33... Kf8 {[%clk 0:00:30.9]} 34. Qf5 {[%clk 0:00:27.1]} 34...
Rb8 {[%clk 0:00:21.9]} 35. f4 {[%clk 0:00:21.8]} 35... Ng6 {[%clk 0:00:16.6]}
36. Qd7 {[%clk 0:00:20.8]} 36... Qf6 {[%clk 0:00:10.7]} 37. g3 {[%clk
0:00:16.7]} 37... Kg8 {[%clk 0:00:09.7]} 38. Kf2 {[%clk 0:00:15.9]} 38... Nf8
{[%clk 0:00:06.7]} 39. Qf5 {[%clk 0:00:14.4]} 39... Qc3 {[%clk 0:00:06.4]} 40.
Bc4 {[%clk 0:00:13.7]} 40... Re8 {[%clk 0:00:05.6]} 41. Re2 {[%clk 0:00:13.2]}
41... Ng6 {[%clk 0:00:05.4]} 42. Qd7 {[%clk 0:00:11.1]} 42... Re7 {[%clk
0:00:05]} 43. Qxd6 {[%clk 0:00:11.1]} 43... Qa1 {[%clk 0:00:04.9]} 44. Qxc5
{[%clk 0:00:08.8]} 44... Re8 {[%clk 0:00:03.8]} 45. d6 {[%clk 0:00:08.9]} 45...
Nf8 {[%clk 0:00:03.7]} 46. Qf5 {[%clk 0:00:06.1]} 46... Qg7 {[%clk 0:00:01.8]}
47. d7 {[%clk 0:00:04.6]} 47... Rd8 {[%clk 0:00:02.2]} 48. Rd2 {[%clk
0:00:04.6]} 48... Qc3 {[%clk 0:00:02.2]} 49. Ke2 {[%clk 0:00:04.2]} 49... Ne6
{[%clk 0:00:01.4]} 50. Bxe6 {[%clk 0:00:01.5]} 50... fxe6 {[%clk 0:00:01.8]} 51.
Qxe6+ {[%clk 0:00:01.7]} 51... Kg7 {[%clk 0:00:02.3]} 52. Qe7+ {[%clk
0:00:01.5]} 52... Kg6 {[%clk 0:00:02.3]} 53. Qxd8 {[%clk 0:00:02.2]} 53... Qxb3
{[%clk 0:00:02.7]} 54. Qe8+ {[%clk 0:00:02.5]} 54... Kg7 {[%clk 0:00:02.7]} 55.
d8=Q {[%clk 0:00:03.4]} 1-0